Cogmind - Beta 14 @@@ ROGUE MODE // 2025.01.02 @ 23:15:31 Player: Tereza Result: Destroyed by G-47 Trooper with Particle Gun Performance ------------- Evolutions (3) 1500 Regions Visited (8) 1600 Robots Destroyed (180) 900 Value Destroyed (6952) 6952 Prototype IDs (10) 200 Alien Tech Used (0) 0 Bonus (1036) 1036 TOTAL SCORE: 12188 Bonus ------- High Alert Combat Kills 797 Follower Combat Kills 108 Entered Garrisons 400 Friendly Fire -269 Cogmind --------- Core Integrity 0/700 Matter 54/300 Energy 100/100 System Corruption 8% Temperature Cool (9) Movement Core (1400) Ox27 Location -7/Factory Parts ------- > --- POWER (1) -------- (None) > --- PROPULSION (4) --- (None) > --- UTILITY (6) ------ Huge Storage Unit Transport Network Coupler Graphene Brace > --- WEAPON (2) ------- Mini Grenade Launcher > --- INVENTORY (25) --- High-capacity Matter Pod (186) Matter Filter Transmission Jammer Backup Plating III Backup Plating III Light Armor Plating Hardlight Generator Hacking Suite Hacking Suite High-powered Tractor Beam Particle Gun Particle Gun Heavy Laser Cooled Pulse Rifle Cooled Pulse Rifle Plasma Cannon Shock Bomb Launcher Plasma Cutter Tiamat Bomb Trap Tiamat Bomb Trap Gamma Bomb Trap Gamma Bomb Trap Peak State ------------ > --- POWER ------------ Micro Nuclear Core > --- PROPULSION ------- Light Treads Medium Treads Improved Carbon-fiber Leg Improved Carbon-fiber Leg > --- UTILITY ---------- Improved Heat Sink Huge Storage Unit Improved Sensor Array Transport Network Coupler Graphene Brace Hacking Suite > --- WEAPON ----------- Shock Rifle Plasma Cannon > --- INVENTORY -------- Light Nuclear Core Micro Nuclear Core High-capacity Matter Pod Matter Filter Transmission Jammer Light Armor Plating Improved Medium Armor Plating Hardlight Generator Hacking Suite Hacking Suite High-powered Tractor Beam Particle Gun Particle Gun Spread Laser Heavy Laser Mini Grenade Launcher Mini Grenade Launcher Improved Grenade Launcher Plasma Cutter Tiamat Bomb Trap Tiamat Bomb Trap Gamma Bomb Trap Gamma Bomb Trap [Rating: 47] Favorites ----------- Power Micro Nuclear Core Engine Light Ion Engine Power Core Micro Nuclear Core Propulsion Light Treads Treads Light Treads Leg Improved Carbon-fiber Leg Wheel Compact Wheel Utility Huge Storage Unit Device Graphene Brace Storage Huge Storage Unit Processor Transport Network Coupler Hackware Hacking Suite Protection Improved Medium Armor Plating Weapon Improved Assault Rifle Energy Gun Spread Laser Energy Cannon Plasma Cannon Ballistic Gun Improved Assault Rifle Ballistic Cannon Improved Light Cannon Launcher Improved Grenade Launcher Special Weapon Plasma Cutter Impact Weapon Hammer Build | -11 -10 -9 -9 -9 -8 -8 -8 -7 ------- Run | Yrd Mat Mat Sto Gar Mat Gar Mat Fac Slots Evolved 6 | . . 2 . . 2 . . 2 Power . | . . . . . . . . . Propulsion 2 | . . . . . 1 . . 1 Utility 4 | . . 2 . . 1 . . 1 Weapon . | . . . . . . . . . Parts Attached 146 | 6 5 32 18 9 23 8 23 22 Power 12 | 1 . 3 1 1 1 1 1 3 Engine 7 | 1 . 3 1 1 . . . 1 Core 5 | . . . . . 1 1 1 2 Reactor . | . . . . . . . . . Propulsion 34 | 2 . 8 3 2 5 3 6 5 Treads 24 | 2 . 5 3 2 5 3 2 2 Leg 3 | . . . . . . . 3 . Wheel 7 | . . 3 . . . . 1 3 Hover . | . . . . . . . . . Flight . | . . . . . . . . . Utility 48 | 1 3 11 7 1 11 4 5 5 Device 7 | . . . . . 4 . 2 1 Storage 3 | 1 2 . . . . . . . Processor 3 | . . 1 . . 1 . . 1 Hackware 2 | . . . . 1 . 1 . . Protection 33 | . 1 10 7 . 6 3 3 3 Artifact . | . . . . . . . . . Weapon 52 | 2 2 10 7 5 6 . 11 9 Energy Gun 8 | 1 . . . . . . 4 3 Energy Cannon 2 | . . 1 . . . . 1 . Ballistic Gun 20 | 1 1 6 5 . 3 . 2 2 Ballistic Cannon 6 | . 1 . . 3 2 . . . Launcher 12 | . . 3 . . 1 . 4 4 Special Weapon 2 | . . . . 2 . . . . Impact Weapon 2 | . . . 2 . . . . . Slashing Weapon . | . . . . . . . . . Piercing Weapon . | . . . . . . . . . Special Melee Weapon . | . . . . . . . . . Unidentified Prototypes 2 | . . . . . 1 . . 1 Parts Lost 66 | . . 12 2 4 6 5 13 24 Power 10 | . . 3 . 1 . 1 1 4 Propulsion 22 | . . 3 1 . 3 3 4 8 Utility 18 | . . 3 1 2 2 1 4 5 Weapon 16 | . . 3 . 1 1 . 4 7 Highest Loss Streak 8 | . . 5 1 1 2 1 5 8 To Critical Strikes 1 | . . . . . 1 . . . Average Slot Usage (%) 94 | . 99 87 97 93 97 99 93 79 Engine 6 | . 14 9 10 10 1 . . . Core 3 | . . . . . 7 8 8 3 Treads 20 | . 28 12 11 21 26 26 17 7 Wheel 2 | . . 8 11 . . . 2 3 Device 5 | . . . . . 11 9 12 16 Storage 10 | . 15 11 11 11 9 9 9 7 Hackware 3 | . . . . 9 6 2 9 6 Protection 17 | . 12 22 30 17 15 24 11 2 Ballistic Gun 12 | . 19 16 20 10 6 9 11 2 Ballistic Cannon 7 | . 8 5 . 10 11 9 . . Peak Build Rating 47 | 6 11 22 18 21 39 39 39 47 Average Rating 24 | 4 8 16 17 19 31 35 36 37 On Entrance 20 | . 6 10 18 18 16 38 37 39 Naked Turns . | . . . . . . . . . Heaviest Build 116 | 11 90 108 104 105 116 116 109 105 Greatest Support 63 | 40 40 40 20 43 63 63 60 36 Greatest Overweight (x) 30 | 1 2 10 6 6 2 1 10 30 Average Overweight (x) 3 | . 1 7 5 2 1 1 3 4 Largest Inventory Capacity 25 | 8 25 25 25 25 25 25 25 25 Average Capacity 24 | 7 20 25 25 25 25 25 25 25 Most Carried 25 | 4 24 25 25 25 25 25 25 25 Average Carried 23 | 2 17 23 24 24 24 24 23 22 Final Capacity 25 | 8 25 25 25 25 25 25 25 25 Final Carried 25 | 4 23 25 25 25 24 25 23 22 Class Distribution -------------------- 96% | Mutant Dominant Class ---------------- Mutant | -10/Materials Mutant | -9/Materials Mutant | -9/Storage Mutant | -9/Garrison Mutant | -8/Materials Mutant | -8/Garrison Mutant | -8/Materials Mutant | -7/Factory Resources | -11 -10 -9 -9 -9 -8 -8 -8 -7 ----------- Run | Yrd Mat Mat Sto Gar Mat Gar Mat Fac Matter Collected 5495 | 208 299 1309 524 482 867 716 711 379 Remotely . | . . . . . . . . . Salvage Created 5659 | . 597 1736 548 269 410 492 720 887 Parts 335 | . 33 116 24 20 16 48 34 44 Haulers Intercepted 15 | . 2 6 3 . 2 . 1 1 Recyclers Shooed 13 | . 2 6 . . . . 2 3 Parts Field Recycled . | . . . . . . . . . Retrieved Matter . | . . . . . . . . . Parts Self-Destructed . | . . . . . . . . . Prevented . | . . . . . . . . . Kills | -11 -10 -9 -9 -9 -8 -8 -8 -7 ------- Run | Yrd Mat Mat Sto Gar Mat Gar Mat Fac Combat Hostiles Destroyed 133 | . 14 36 7 9 9 20 19 19 Guns 63 | . 9 16 7 2 2 12 8 7 Cannons 44 | . 4 14 . 7 7 8 1 3 AOE 25 | . 1 6 . . . . 9 9 Classes Destroyed 17 | . 6 4 . 1 2 2 1 1 Worker 6 | . . 2 . . . . 1 3 Builder 3 | . . . . . . . 1 2 Hauler 15 | . 2 6 3 . 2 . 1 1 Recycler 7 | . 1 2 . . . . 1 3 Mechanic 1 | . . . . . . . . 1 Operator 2 | . 1 1 . . . . . . Watcher 12 | . 3 5 2 . . . 1 1 Swarmer 23 | . 6 7 . 1 . 5 4 . Grunt 63 | . 8 16 4 3 6 3 12 11 Brawler 3 | . . 2 . . . . . 1 Duelist 4 | . . 1 . . . 1 . 2 Protector 3 | . . . . . . 1 1 1 Sentry 23 | . . 10 3 4 1 3 2 . Demolisher 1 | . . . . . . 1 . . Hunter 3 | . . . . . 1 1 . 1 Programmer 10 | . . . . 1 . 6 . 3 Heavy 1 | . . . . . 1 . . . Best Kill Streak 9 | . 5 5 4 2 2 5 9 7 Combat Bots Only 8 | . 5 4 3 2 2 5 8 5 Max Kills in Single Turn 3 | . 1 3 1 1 1 1 2 2 Gunslinging 1 | . . 1 . . . . . . Exploded 3 | . 1 3 . . . . 2 1 Melee . | . . . . . . . . . Uniques/NPCs Destroyed . | . . . . . . . . . Combat | -11 -10 -9 -9 -9 -8 -8 -8 -7 -------- Run | Yrd Mat Mat Sto Gar Mat Gar Mat Fac Hostile Shots Fired 859 | . 60 183 48 55 75 141 127 170 Missed 216 | . 17 45 8 11 19 42 27 47 Damage Taken 10573 | . 458 2087 543 586 1331 1403 1569 2596 Core 1611 | . 62 285 . 37 173 150 190 714 Absorbed by Shields 96 | . . . . . . . 96 . Regen/Repaired (Parts) 423 | . . . 158 . 69 . . 196 Core Remaining (%) 50 | 100 75 . . 19 . . 6 . Volleys Fired 576 | . 68 144 46 52 60 68 66 72 Largest 2 | . 2 2 2 2 2 2 2 2 Hottest 149 | . 60 91 46 78 78 69 149 145 Shots Fired 1092 | . 136 284 82 88 120 135 124 123 Gun 714 | . 110 207 82 28 43 67 98 79 Cannon 342 | . 26 69 . 60 77 68 18 24 Launcher 36 | . . 8 . . . . 8 20 Special . | . . . . . . . . . Kinetic 932 | . 129 271 82 88 120 135 79 28 Thermal 107 | . . 5 . . . . 37 65 Explosive 36 | . . 8 . . . . 8 20 Electromagnetic 17 | . 7 . . . . . . 10 Robot Hit Streak 23 | . 9 16 16 17 10 9 23 13 Robot Miss Streak 16 | . 4 4 2 7 6 5 6 16 Penetration Max . | . . . . . . . . . Secondary Targets 2 | . . 1 . . . . 1 . Max Gunslinging Chain 1 | . . 1 . . . . 1 . Shots Hit Robots 726 | . 81 184 65 45 77 76 93 105 Core Hits 362 | . 35 72 16 13 25 34 57 110 Critical Kills 1 | . . . . . . 1 . . Critical Parts Destroyed 2 | . . . 1 . . . 1 . Critical Strikes 10 | . . 2 1 3 2 1 1 . Destroy 3 | . . . 1 . . 1 1 . Blast 7 | . . 2 . 3 2 . . . Melee Attacks 7 | . . . 7 . . . . . Impact 7 | . . . 7 . . . . . Slashing . | . . . . . . . . . Piercing . | . . . . . . . . . Sneak Attacks 1 | . . . 1 . . . . . Combat Hostiles . | . . . . . . . . . Follow-up Attacks . | . . . . . . . . . Damage Inflicted 16628 | . 957 3776 1079 988 1636 1943 2390 3859 Guns 8151 | . 510 2213 1019 336 595 987 1364 1127 Cannons 4472 | . 394 696 . 652 1041 849 344 496 Explosions 3910 | . 53 838 . . . 107 680 2232 Melee 60 | . . . 60 . . . . . Ramming 35 | . . 29 . . . . 2 4 Kinetic 10685 | . 869 2867 1019 988 1636 1836 1034 436 Thermal 1903 | . 53 42 . . . . 674 1134 Explosive 3706 | . . 838 . . . 107 680 2081 Electromagnetic 239 | . 35 . . . . . . 204 Impact 60 | . . . 60 . . . . . Slashing . | . . . . . . . . . Piercing . | . . . . . . . . . Highest Corruption 10 | . . 1 1 3 4 10 10 8 Average Corruption 4 | . . 1 1 1 3 9 10 3 Corruption Purged . | . . . . . . . . . Corruption Blocked . | . . . . . . . . . Effects 184 | . . 4 6 17 25 87 30 15 Message Errors 38 | . . 2 . 3 5 18 7 3 Matter Fused 51 | . . 2 2 6 9 22 7 3 Heat Flow Errors 17 | . . . 1 3 1 9 1 2 Energy Discharges 21 | . . . 1 . 2 14 3 1 Parts Rejected 2 | . . . 1 . . . 1 . Data Loss (minor) 28 | . . . 1 3 4 13 4 3 Data Loss (major) 12 | . . . . 2 2 5 . 3 Misfires 8 | . . . . . . 3 5 . Alerts 4 | . . . . . 2 1 1 . Misdirections 1 | . . . . . . . 1 . Weapon Failures 2 | . . . . . . 2 . . Overload Shots . | . . . . . . . . . Overflow Damage 305 | . . 28 . 26 8 58 39 146 Projectiles 129 | . . 1 . 26 8 58 20 16 Explosions 167 | . . 18 . . . . 19 130 Melee 9 | . . 9 . . . . . . Knockbacks 39 | . 8 6 . 5 8 12 . . Impact . | . . . . . . . . . Kinetic 34 | . 7 5 . 5 7 10 . . Secondary 5 | . 1 1 . . 1 2 . . Self-Inflicted Damage 973 | . . 150 . . . 80 214 529 Shots 25 | . . 4 . . . 1 4 16 Rammed 2 | . . 1 . . . . 1 . Targets Rammed 3 | . . 1 . . . . 1 1 Kicked 1 | . . . . . . . . 1 Crushed . | . . . . . . . . . Highest Temperature 474 | . 79 339 290 238 220 282 474 394 Average Temperature 65 | . 21 46 94 52 36 61 138 112 Received Heat Transfer 2933 | . 177 684 213 156 234 153 614 702 Effects 5 | . . 1 . . . . 3 1 Interference 4 | . . 1 . . . . 3 . Damage (minor) 1 | . . . . . . . . 1 Siege Activations . | . . . . . . . . . Robots Corrupted . | . . . . . . . . . Combat Hostiles . | . . . . . . . . . Parts Fried . | . . . . . . . . . Impact Corruptions 1 | . . 1 . . . . . . Robots Melted 1 | . . . . . . . 1 . Combat Hostiles 1 | . . . . . . . 1 . Parts Melted 2 | . . . . . . . 2 . Heat Transferred 2944 | . 50 74 . . . . 1167 1653 Parts Sabotaged . | . . . . . . . . . Parts Stolen . | . . . . . . . . . Parts Stripped . | . . . . . . . . . Power Chain Reactions 3 | . 1 . . . . . . 2 Alert | -11 -10 -9 -9 -9 -8 -8 -8 -7 ------- Run | Yrd Mat Mat Sto Gar Mat Gar Mat Fac Peak Influence 1383 | . 329 675 477 756 368 1383 973 675 Initial 674 | . . 22 261 138 368 20 674 442 Average 352 | . 81 363 322 418 76 655 742 526 Maximum Alert Level 4 | . 1 2 2 3 1 4 3 2 Low Security (%) 37 | 100 89 21 5 15 84 9 . . Level 1 23 | . 10 32 76 40 15 19 . . Level 2 24 | . . 45 18 23 . 19 24 100 Level 3 12 | . . . . 20 . 36 75 . Level 4 2 | . . . . . . 13 . . Level 5 . | . . . . . . . . . High Security . | . . . . . . . . . Max Security . | . . . . . . . . . Squads Dispatched 16 | . 2 2 . . 4 . 4 4 Investigation 4 | . 1 . . . 2 . 1 . Extermination 2 | . . . . . . . . 2 Reinforcement 7 | . 1 1 . . 2 . 2 1 Assault 3 | . . 1 . . . . 1 1 Garrison . | . . . . . . . . . Intercept . | . . . . . . . . . Searches Triggered . | . . . . . . . . . Construction Impeded 3 | . . . . . . . 2 1 Haulers Reinforced . | . . . . . . . . . Active Scanning Responses . | . . . . . . . . . Cargo Convoy Interrupts . | . . . . . . . . . Stealth | -11 -10 -9 -9 -9 -8 -8 -8 -7 --------- Run | Yrd Mat Mat Sto Gar Mat Gar Mat Fac Distress Signals 5 | . 1 . 1 . 1 . . 2 Communications Jammed 6 | . . . . . 6 . . . Distress Signals . | . . . . . . . . . Times Spotted 204 | . 24 53 11 12 17 26 25 36 Peak Tracking Total 7 | . 6 5 4 3 3 7 6 5 Tactical Retreats 8 | . 2 1 . . 2 1 . 2 Traps | -11 -10 -9 -9 -9 -8 -8 -8 -7 ------- Run | Yrd Mat Mat Sto Gar Mat Gar Mat Fac Traps Triggered 20 | . 1 3 3 2 2 8 1 . Indirectly . | . . . . . . . . . Trap Hack Attempts . | . . . . . . . . . Triggered . | . . . . . . . . . Disarmed . | . . . . . . . . . Reprogrammed . | . . . . . . . . . Reused . | . . . . . . . . . Traps Extracted . | . . . . . . . . . Installed . | . . . . . . . . . Triggered . | . . . . . . . . . Most Traps Carried 4 | . . . . 3 3 4 4 4 Machines | -11 -10 -9 -9 -9 -8 -8 -8 -7 ---------- Run | Yrd Mat Mat Sto Gar Mat Gar Mat Fac Machines Disabled 34 | . 2 4 3 8 . 8 4 5 Max in Single Turn 4 | . 2 1 1 1 . 2 2 4 Garrison Relay 4 | . . . . 1 . 3 . . Phase Generator 2 | . . . . 1 . 1 . . Machines Repaired . | . . . . . . . . . Machines Dismantled 2 | . . . . 2 . . . . Machines Sabotaged . | . . . . . . . . . Overloaded Fab Kills . | . . . . . . . . . Hacking | -11 -10 -9 -9 -9 -8 -8 -8 -7 --------- Run | Yrd Mat Mat Sto Gar Mat Gar Mat Fac Machines Accessed 34 | . 6 10 3 3 9 2 . 1 Terminals 29 | . 6 10 1 3 7 2 . . Fabricators . | . . . . . . . . . Repair Stations 3 | . . . 1 . 1 . . 1 Recycling Units . | . . . . . . . . . Scanalyzers . | . . . . . . . . . Garrison Access 2 | . . . 1 . 1 . . . Total Hacks 81 | . 13 22 6 7 26 3 . 4 Successful 36 | . 5 8 4 2 14 1 . 2 Failed 42 | . 7 13 2 5 11 2 . 2 Catastrophic 6 | . . 2 . . 2 2 . . Database Lockouts 3 | . 1 1 . . 1 . . . Manual 37 | . 5 16 . . 15 1 . . Terminals 69 | . 13 22 1 7 23 3 . . Fabricators . | . . . . . . . . . Repair Stations 9 | . . . 3 . 2 . . 4 Recycling Units . | . . . . . . . . . Scanalyzers . | . . . . . . . . . Garrison Access 3 | . . . 2 . 1 . . . Terminal Hacks 27 | . 5 7 1 2 11 1 . . Record 1 | . . . . . 1 . . . Robot Analysis 7 | . 1 3 . . 3 . . . Prototype ID Bank 4 | . 2 . . . 2 . . . Open Door 1 | . . . 1 . . . . . Branch Access Points 2 | . 1 1 . . . . . . Emergency Access Points 1 | . . . . 1 . . . . Alert Level 3 | . . . . . 3 . . . Unreport Threat 2 | . . 1 . . 1 . . . Transport Status 1 | . . 1 . . . . . . Reinforcement Status 1 | . . 1 . . . . . . Zone Layout 2 | . 1 . . . 1 . . . Garrison Registry 2 | . . . . 1 . 1 . . Fabricator Hacks . | . . . . . . . . . Repair Station Hacks 6 | . . . 2 . 2 . . 2 Scan Component 3 | . . . 1 . 1 . . 1 Repair 3 | . . . 1 . 1 . . 1 Recycling Unit Hacks . | . . . . . . . . . Scanalyzer . | . . . . . . . . . Garrison Access Hacks 2 | . . . 1 . 1 . . . Unlock Access 2 | . . . 1 . 1 . . . Unauthorized Hacks 1 | . . 1 . . . . . . Terminals 1 | . . 1 . . . . . . Botnet 1 | . . 1 . . . . . . Fabricators . | . . . . . . . . . Repair Stations . | . . . . . . . . . Recycling Units . | . . . . . . . . . Scanalyzers . | . . . . . . . . . Garrison Access . | . . . . . . . . . Data Cores Recovered . | . . . . . . . . . Used . | . . . . . . . . . Hacking Detections 23 | . 5 7 . 2 7 1 . 1 Full Trace Events 2 | . . . . 1 . 1 . . Feedback Events . | . . . . . . . . . Feedback Blocked . | . . . . . . . . . Robot Schematics Acquired . | . . . . . . . . . Robots Built . | . . . . . . . . . Authchips . | . . . . . . . . . Time . | . . . . . . . . . Total Robot Build Rating . | . . . . . . . . . Part Schematics Acquired . | . . . . . . . . . Parts Built . | . . . . . . . . . Authchips . | . . . . . . . . . Time . | . . . . . . . . . Total Part Build Rating . | . . . . . . . . . Parts Repaired 3 | . . . 1 . 1 . . 1 Time 98 | . . . 32 . 44 . . 22 Parts Recycled . | . . . . . . . . . Recycled Matter . | . . . . . . . . . Retrieved Matter . | . . . . . . . . . Retrieved Components . | . . . . . . . . . Parts Scanalyzed . | . . . . . . . . . Part Schematics Acquired . | . . . . . . . . . Parts Damaged . | . . . . . . . . . Bothacking | -11 -10 -9 -9 -9 -8 -8 -8 -7 ------------ Run | Yrd Mat Mat Sto Gar Mat Gar Mat Fac Used RIF Installer . | . . . . . . . . . Robots Hacked . | . . . . . . . . . Non-combat . | . . . . . . . . . Combat . | . . . . . . . . . Robot Hacks Applied . | . . . . . . . . . Relay Couplers Released 18 | . . . . 6 . 12 . . Machine Destruction 15 | . . . . 3 . 12 . . Programmers 3 | . . . . 3 . . . . Fabnet Peak Effective % . | . . . . . . . . . Robots Rewired 6 | . . . . . . 6 . . Allies Hacked . | . . . . . . . . . Hacks Repelled . | . . . . . . . . . Allies | -11 -10 -9 -9 -9 -8 -8 -8 -7 -------- Run | Yrd Mat Mat Sto Gar Mat Gar Mat Fac Total Allies 7 | . . . . 1 . 6 . . Largest Group 6 | . . . . 1 . 6 1 . Highest-Rated Group 69 | . . . . 20 . 69 18 . Highest-Rated Ally 20 | . . . . 20 . 18 18 . Total Orders . | . . . . . . . . . Ally Attacks 32 | . . . . 8 . 24 . . Total Damage 680 | . . . . 296 . 384 . . Kills 8 | . . . . 3 . 5 . . Allies Corrupted . | . . . . . . . . . Allies Melted . | . . . . . . . . . Intel | -11 -10 -9 -9 -9 -8 -8 -8 -7 ------- Run | Yrd Mat Mat Sto Gar Mat Gar Mat Fac Robot Analysis Total 7 | . 1 3 . . 3 . . . Derelict Logs Recovered . | . . . . . . . . . Drone Launches . | . . . . . . . . . Drone Recoveries . | . . . . . . . . . Exploration | -11 -10 -9 -9 -9 -8 -8 -8 -7 ------------- Run | Yrd Mat Mat Sto Gar Mat Gar Mat Fac Turns Passed 14761 | 69 2298 2939 860 1672 2593 2435 792 1103 Spaces Moved 5113 | 40 829 1072 335 471 934 885 222 325 Core 15 | 8 . . . . . . . 7 Treads 3467 | 32 829 159 2 434 934 885 158 34 Legs 108 | . . . . . . . . 108 Wheels 1523 | . . 913 333 37 . . 64 176 Hover . | . . . . . . . . . Flight . | . . . . . . . . . Fastest Speed 50 | 50 160 175 175 190 240 240 215 135 Average Speed 242 | 141 248 226 191 309 243 240 245 254 Slowest Speed 1550 | 160 320 560 560 320 320 240 480 1550 Overloaded Moves . | . . . . . . . . . Propulsion Burnouts . | . . . . . . . . . Robots Hopped . | . . . . . . . . . Cave-ins Triggered . | . . . . . . . . . Exploration Rate (%) 54 | 4 97 95 46 58 82 76 26 10 Regions Visited 8 Branch Regions 1 Pre-discovered Areas . | . . . . . . . . . Known Exits Taken 3 | . . 1 1 . 1 . . . Unknown Exits Taken 3 | 1 1 . . . . . 1 . Scrap Searched . | . . . . . . . . . Spaces Dug 1 | . . . 1 . . . . . Terrain Destroyed 288 | . . 53 1 . 4 71 72 87 Melee 1 | . . . 1 . . . . . Projectile 7 | . . . . . 4 . 3 . AOE 280 | . . 53 . . . 71 69 87 Terrain Rammed . | . . . . . . . . . Walls Destroyed . | . . . . . . . . . Machines Disabled . | . . . . . . . . . Actions | -11 -10 -9 -9 -9 -8 -8 -8 -7 --------- Run | Yrd Mat Mat Sto Gar Mat Gar Mat Fac Total 6377 | 49 957 1310 469 559 1142 1065 348 478 Wait 249 | . 22 14 46 1 86 12 22 46 Move 5106 | 39 828 1071 335 470 934 883 221 325 Hop . | . . . . . . . . . Pick Up 108 | 4 25 26 8 3 17 8 7 10 Fast Attach 57 | 6 2 12 11 . 9 1 8 8 Attach 41 | . . 9 1 2 6 4 9 10 Detach 4 | . 1 . . . . . 3 . Swap 49 | . 3 11 6 7 8 3 6 5 Drop 73 | . 8 22 9 2 22 4 5 1 Fire 576 | . 68 144 46 52 60 68 66 72 Melee 7 | . . . 7 . . . . . Ram 2 | . . 1 . . . . 1 . Kick 1 | . . . . . . . . 1 Crush . | . . . . . . . . . Escape Stasis 20 | . . . . 4 . 16 . . Rewire 66 | . . . . . . 66 . . Trap . | . . . . . . . . . Miscellaneous 18 | . . . . 18 . . . . Route ------- -11/Scrapyard -10/Materials (discovered 5 exits: *Mat x3 / *Min / [*Sub]) -9/Materials (discovered 6 exits: *Mat x3 / *Min x2 / *Sto) -9/Storage (discovered 2 exits: *Mat / Gar) -9/Garrison (discovered 3 exits: *Mat x3) -8/Materials (discovered 3 exits: *Fac x2 / Gar) -8/Garrison (discovered 3 exits: [*Mat x3]) -8/Materials -7/Factory History --------- Turn | Location | Event 11 | -11/Scrapyard | Discovered new exit (range 15) 70 | -11/Scrapyard | Entered Materials 307 | -10/Materials | Build established: Mutant 682 | -10/Materials | Central database locked down 719 | -10/Materials | Discovered new exit (range 15) 816 | -10/Materials | Discovered new exit (range 6) 835 | -10/Materials | Discovered new exit (range 9) 1814 | -10/Materials | Discovered new exit (range 11) 1931 | -10/Materials | Identified exit to Mines 2192 | -10/Materials | Discovered new exit (range 15) 2368 | -10/Materials | Entered another Materials area 2368 | -9/Materials | Evolved 2 slots: Utility x2 2821 | -9/Materials | Discovered new exit (range 15) 3224 | -9/Materials | Discovered new exit (range 12) 3755 | -9/Materials | Identified exit to Mines 3755 | -9/Materials | Identified exit to Storage 3941 | -9/Materials | Central database locked down 4326 | -9/Materials | Discovered new exit (range 14) 4368 | -9/Materials | First assault squad dispatched 4506 | -9/Materials | Core integrity fell below 50% 4541 | -9/Materials | Lost 5 parts (1p1n1u2w) 4732 | -9/Materials | Discovered new exit (range 16) 5307 | -9/Materials | Entered Storage 5372 | -9/Storage | Repaired Hrd. Light Armor Plating 5871 | -9/Storage | Discovered new exit (range 16) 6167 | -9/Storage | Identified exit to Garrison 6167 | -9/Storage | Entered Garrison 6279 | -9/Garrison | Triggered checkpoint 6389 | -9/Garrison | Triggered checkpoint 6671 | -9/Garrison | Discovered new exit (range 15) 6829 | -9/Garrison | Rescued a captive Derelict 6946 | -9/Garrison | Triggered checkpoint 7077 | -9/Garrison | Triggered checkpoint 7127 | -9/Garrison | Garrison Relay disabled 7160 | -9/Garrison | Core integrity fell below 20% 7494 | -9/Garrison | Phase Generator disabled 7526 | -9/Garrison | Discovered new exit (range 7) 7545 | -9/Garrison | Discovered new exit (range 68) 7545 | -9/Garrison | Discovered new exit (range 9) 7545 | -9/Garrison | Discovered new exit (range 56) 7839 | -9/Garrison | Entered Materials 7839 | -8/Materials | Evolved 2 slots: Propulsion x1, Utility x1 8550 | -8/Materials | Discovered new exit (range 11) 8867 | -8/Materials | Central database locked down 9159 | -8/Materials | Met 7R-MNS 9766 | -8/Materials | Discovered new exit (range 16) 9977 | -8/Materials | Repaired Imp. Medium Armor Plating 10432 | -8/Materials | Identified exit to Garrison 10432 | -8/Materials | Entered Garrison 10490 | -8/Garrison | Triggered checkpoint 10637 | -8/Garrison | Garrison Relay disabled 10859 | -8/Garrison | System corruption reached 10% 11134 | -8/Garrison | Triggered checkpoint 11144 | -8/Garrison | Core integrity fell below 50% 11181 | -8/Garrison | Garrison Relay disabled 11230 | -8/Garrison | Discovered new exit (range 14) 11434 | -8/Garrison | Triggered checkpoint 11904 | -8/Garrison | Triggered checkpoint 11936 | -8/Garrison | Triggered checkpoint 12008 | -8/Garrison | Triggered checkpoint 12138 | -8/Garrison | Discovered new exit (range 14) 12305 | -8/Garrison | Phase Generator disabled 12318 | -8/Garrison | Discovered new exit (range 16) 12318 | -8/Garrison | Discovered new exit (range 24) 12318 | -8/Garrison | Discovered new exit (range 72) 12557 | -8/Garrison | Garrison Relay disabled 12642 | -8/Garrison | Attempted to access garrison exit controls, blocked by remote lockdown 12867 | -8/Garrison | Entered Materials 12867 | -8/Materials | Accompanied by 1 ally 13267 | -8/Materials | First assault squad dispatched 13409 | -8/Materials | Destroyed 8 combat bots 13415 | -8/Materials | Lost 4 parts (2n1u1w) 13504 | -8/Materials | Core integrity fell below 20% 13567 | -8/Materials | Lost 5 parts (1p2u2w) 13606 | -8/Materials | Destroyed 7 combat bots 13620 | -8/Materials | Discovered new exit (range 16) 13659 | -8/Materials | Entered Factory 13659 | -7/Factory | Evolved 2 slots: Propulsion x1, Utility x1 13915 | -7/Factory | Repaired Imp. Medium Armor Plating 14059 | -7/Factory | First assault squad dispatched 14233 | -7/Factory | Lost 5 parts (1p2n1u1w) 14470 | -7/Factory | Core integrity fell below 50% 14521 | -7/Factory | Lost 5 parts (1p2n1u1w) 14728 | -7/Factory | Core integrity fell below 20% 14762 | -7/Factory | Destroyed by G-47 Trooper with Particle Gun Last Messages --------------- 14718_ P-60 Hacker destroyed. 14720_ Hacking Suite destroyed. 14721_ R-06 Scavenger collects Terrain Scanner. 14721_ Lgt. Nuclear Core destroyed. 14721_ Destroyed Lgt. Nuclear Core. 14724_ Mni. Grenade Launcher destroyed. 14725_ R-06 Scavenger collects Aluminum Leg. 14726_ R-06 Scavenger collects Unknown Engine. 14729_ R-06 Scavenger collects Aluminum Leg. 14730_ The unstable cave ceiling collapses. 14731_ K-01 Serf destroyed. 14731_ L-41 Fighter destroyed. 14732_ Cld. Pulse Rifle destroyed. 14732_ R-06 Scavenger collects Sml. Matter Pod. 14734_ R-06 Scavenger collects Unknown Engine. 14737_ Flak Gun destroyed. 14738_ R-06 Scavenger collects Imp. Heat Sink. 14739_ R-06 Scavenger destroyed. 14741_ G-47 Trooper destroyed. 14741_ Destroyed Com. Wheel. Map ----- +----------------------------------------------------+ | ?????????????????????????????????????????????????? | | ?????????????????????????????????????????????????? | | ?????????????????????????????????????????????????? | | ?????????????????????????????????????????????????? | | ?????????????????????????????????????????????????? | | ?????????????????????????????????????????????????? | | ?????????????????????????????????????????????????? | | ?????????????????????????????????????????????????? | | ?????????????????????????????????????????????????? | | ?????????????????????????????????????????????????? | | ??????????????????????????a??????????????????????? | | ?????????????????????????????????????????????????? | | ??????????????????????????????T ##???????????????? | | ????????????????????????????? ? ???????????? | | ????????????????????????????? ?????a?????? | | ?????????????????????????????? ???????????? | | ?????????????????????????????? ???????????? | | ?????????????????????????????? ??? ????????? | | ?????????????????????????????? ? ?????? | | ?????????????????????????????? ! ????? | | ??????????????????????????????# ???? | | ???????????#################### """ ????? | | ???????????# # g""T"" ?????? | | ???????????# t "" "" ""??????? | | ???????????# """"""""" "" ?????? | | ???????????# @ """?????? | | ???????????# ! ] % """?????? | | ???????????# !]! % ! """?????? | | ???????????# !]! % ?? | | ???????????# "" "" "" ""??? | | ???????????############ # "" "" "" ?????? | | ??????????????????????### # # """ """ ""??????? | | ????????????????????????###### """ """ """?????? | | ?????????????????????????????# """ """ """ "???? | | ?????????????????????????????# ???? | | ?????????????????????????????# ??? | | ?????????????????????????????# ??? | | ####?????????????????????????# ??? | | #?????????????????????????# ######????? | | "" #?????????????????????????# #?????????? | | "" #????????????????############ ###?????????? | | "" #???????????????? # #???????????? | | #??????????????# """"""""" # #???????????? | | #??????????????# + #???????????? | | #??????????????# """"""""" # #???????????? | | #???????????????? # #???????????? | | ####????????????????############ #???????????? | | #############????????????????# ##########??? | | # ?????????????????# # ] [ ??? | | # ?????????????????# # ???? | +----------------------------------------------------+ Best States ------------- Heat Dissipation 48 Energy Generation 15 Energy Capacity 275 Matter Stores 300 Matter Capacity 300 Sight Range 16 Robot Scan Range 15 Terrain Scan Density 10 Jamming Range 12 Armor Coverage 675 Evasion (%) 40 Targeting Accuracy 6 Recoil Reduction 3 Offensive Hacking 10 Item Schematics ----------------- None Robot Schematics ------------------ None Fabricated ------------ Nothing Alien Tech Used ----------------- None Achievements -------------- None Challenges ------------ None Game ------ Seed SubdwellerDerelictWings Manual? 0 Play Time 01:01:13 Cumulative 150.1 hours Start 2025.01.02 @ 22:17:53 End 2025.01.02 @ 23:15:31 Sessions 1 Manual Loads 0 Difficulty Rogue Special Mode None Game No. 187 Rogue 187 Adventurer 0 Explorer 0 Win Type - Total 3 Types 3/0/0/0/0/0/0/0/0 Lore% 68 Gallery% 59 Achievement% 50 Wizard Run 0 Options --------- Layout 1 ASCII 0 Keyboard 1 Movement Numpad Keybinds 0 Fullscreen 1 Font 24/Smallcaps Map View 50x35 Zoom Use 0% Tactical HUD 1 Map Filters NONE Filters NONE Steam 1 RUN: 7cf4aa62-dc2c-4dce-b72f-dd26371b9850